fUST/lending_fUST_20250810
["ID","MTS","AMOUNT","RATE_DAILY","PERIOD"]
[378195532,1754777481368,-468.79,0.00024251,2]
[378195533,1754777481378,-1383.57,0.00024251,2]
[378195534,1754777481387,-460.0,0.00024251,2]
[378195535,1754777481396,-460.0,0.00024251,2]
[378195536,1754777481405,-460.0,0.00024251,2]
[378195537,1754777481415,-460.0,0.00024251,2]
[378195538,1754777481425,-482.87,0.00024251,2]
[378195539,1754777481434,-460.0,0.00024251,2]
[378195540,1754777481444,-460.0,0.00024251,2]
[378195541,1754777481454,-460.0,0.00024251,2]
[378195542,1754777481463,-503.78,0.00024251,2]
[378195543,1754777481473,-460.0,0.00024251,2]
[378195544,1754777481482,-460.0,0.00024251,2]
[378195545,1754777481491,-460.0,0.00024251,2]
[378195546,1754777481500,-460.0,0.00024251,2]
[378195547,1754777481509,-460.0,0.00024251,2]
[378195548,1754777481519,-162.54,0.00024252,2]
[378195549,1754777481528,-460.0,0.00024252,2]
[378195550,1754777481537,-155.90322173,0.00024252,2]
[378195551,1754777481546,-460.0,0.00024252,2]
[378195552,1754777481555,-460.0,0.00024252,2]
[378195553,1754777481564,-460.0,0.00024252,2]
[378195554,1754777481574,-460.0,0.00024252,2]
[378195555,1754777481584,-462.81789658,0.00024252,2]
[378195556,1754777481595,-460.0,0.00024252,2]
[378195557,1754777481605,-460.0,0.00024252,2]
[378195558,1754777481614,-460.0,0.00024252,2]
[378195559,1754777481624,-460.0,0.00024252,2]
[378195560,1754777481741,-460.0,0.00024252,2]
[378195561,1754777481751,-542.22,0.00024252,2]
[378195562,1754777481761,-460.0,0.00024252,2]
[378195563,1754777481770,-460.0,0.00024252,2]
[378195564,1754777481780,-460.0,0.00024252,2]
[378195565,1754777481790,-386.68061684,0.00024252,2]
[378195566,1754777481799,-460.0,0.00024252,2]
[378195567,1754777481809,-509.8503231,0.00024252,2]
[378195568,1754777481818,-460.0,0.00024252,2]
[378195569,1754777481828,-460.0,0.00024252,2]
[378195570,1754777481837,-460.0,0.00024252,2]
[378195571,1754777481848,-460.0,0.00024252,2]
[378195572,1754777481858,-460.0,0.00024252,2]
[378195573,1754777481868,-466.54347167,0.00024252,2]
[378195574,1754777481877,-460.0,0.00024252,2]
[378195575,1754777481887,-944.79,0.00024252,2]
[378195576,1754777481896,-460.0,0.00024252,2]
[378195577,1754777481906,-460.0,0.00024252,2]
[378195578,1754777481915,-460.0,0.00024252,2]
[378195579,1754777481924,-460.0,0.00024252,2]
[378195580,1754777481933,-524.27,0.00024252,2]
[378195581,1754777481942,-460.0,0.00024252,2]
[378195582,1754777481952,-460.0,0.00024252,2]
[378195583,1754777481961,-460.0,0.00024252,2]
[378195584,1754777481970,-500.0,0.00024252,2]
[378195585,1754777481979,-1321.06,0.00024252,2]
[378195586,1754777481989,-460.0,0.00024252,2]
[378195587,1754777481999,-460.0,0.00024252,2]
[378195588,1754777482008,-460.0,0.00024252,2]
[378195589,1754777482018,-678.58,0.00024252,2]
[378195590,1754777482027,-874.9,0.00024252,2]
[378195591,1754777482036,-460.0,0.00024252,2]
[378195592,1754777482046,-460.0,0.00024252,2]
[378195593,1754777482055,-460.0,0.00024252,2]
[378195594,1754777482065,-460.0,0.00024252,2]
[378195595,1754777482074,-460.0,0.00024252,2]
[378195596,1754777482084,-460.0,0.00024252,2]
[378195597,1754777482097,-460.0,0.00024252,2]
[378195598,1754777482106,-460.0,0.00024252,2]
[378195599,1754777482115,-460.0,0.00024252,2]
[378195600,1754777482124,-460.0,0.00024252,2]
[378195601,1754777482133,-1052.85,0.00024252,2]
[378195602,1754777482143,-494.25,0.00024252,2]
[378195603,1754777482157,-460.0,0.00024252,2]
[378195604,1754777482166,-460.0,0.00024252,2]
[378195605,1754777482176,-572.58,0.00024252,2]
[378195606,1754777482186,-303.43736457,0.00024252,2]
[378195607,1754777482196,-460.0,0.00024252,2]
[378195608,1754777482206,-460.0,0.00024252,2]
[378195609,1754777482216,-259.36694017,0.00024252,2]
[378195610,1754777482227,-360.0,0.00024255,2]
[378195611,1754777482237,-2264.10087164,0.00024277,2]
[378195612,1754777482247,-151.0,0.000243,5]
[378195613,1754777482256,-2347.87260389,0.00024332,2]
[378195614,1754777482266,-792.52570548,0.00024387,2]
[378195615,1754777482275,-352.09743884,0.00024411,2]
[378195616,1754777482285,-460.0,0.00024425,2]
[378195617,1754777482294,-820.96,0.00024425,2]
[378195618,1754777482304,-452.06,0.00024432,2]
[378195619,1754777482314,-7600.37586086,0.000245,2]
[378195620,1754777482324,-3538.49,0.000245,2]
[378195621,1754777482333,-1319763.58,0.000245,2]
[378195622,1754777482348,-460.0,0.00024525,2]
[378195623,1754777482357,-460.0,0.00024525,2]
[378195624,1754777482366,-460.0,0.00024525,2]
[378195625,1754777482375,-460.0,0.00024525,2]
[378195626,1754777482385,-460.0,0.00024525,2]
[378195627,1754777482394,-460.0,0.00024525,2]
[378195628,1754777482404,-460.0,0.00024525,2]
[378195629,1754777482413,-460.0,0.00024525,2]
[378195630,1754777482423,-460.0,0.00024525,2]
[378195631,1754777482433,-460.0,0.00024525,2]
[378195632,1754777482443,-460.0,0.00024525,2]
[378195633,1754777482452,-460.0,0.00024525,2]
[378195634,1754777482463,-596.13,0.00024525,2]
[378195635,1754777482472,-460.0,0.00024525,2]
[378195636,1754777482482,-460.0,0.00024525,2]
[378195637,1754777482491,-460.0,0.00024525,2]
[378195638,1754777482501,-1088.48,0.00024525,2]
[378195639,1754777482511,-460.0,0.00024525,2]
[378195640,1754777482521,-566.37,0.00024525,2]
[378195641,1754777482532,-359.399146,0.00024525,7]
[378195642,1754777482542,-974.13,0.00024525,2]
[378195643,1754777482552,-359.399146,0.00024525,7]
[378195644,1754777482561,-460.0,0.00024525,2]
[378195645,1754777482570,-460.0,0.00024525,2]
[378195646,1754777482580,-475.13988708,0.00024525,2]
[378195647,1754777482591,-460.0,0.00024525,2]
[378195648,1754777482602,-460.0,0.00024525,2]
[378195649,1754777482611,-460.0,0.00024525,2]
[378195650,1754777482621,-858.66,0.00024525,2]
[378195651,1754777482632,-460.0,0.00024525,2]
[378195652,1754777482641,-2755.0,0.00024525,2]
[378195653,1754777482651,-460.0,0.00024525,2]
[378195654,1754777482660,-460.0,0.00024525,2]
[378195655,1754777482669,-1382.32,0.00024525,2]
[378195656,1754777482679,-4145.95,0.00024525,2]
[378195657,1754777482688,-1604.39,0.00024525,2]
[378195658,1754777482698,-460.0,0.00024525,2]
[378195659,1754777482707,-460.0,0.00024525,2]
[378195660,1754777482716,-460.0,0.00024525,2]
[378195661,1754777482726,-460.0,0.00024525,2]
[378195662,1754777482735,-460.0,0.00024525,2]
[378195663,1754777482744,-460.0,0.00024525,2]
[378195664,1754777482754,-460.0,0.00024525,2]
[378195665,1754777482763,-460.0,0.00024525,2]
[378195666,1754777482772,-947.95,0.00024525,2]
[378195667,1754777482781,-1247.31,0.00024525,2]
[378195668,1754777482790,-523.55,0.00024525,2]
[378195669,1754777482799,-460.0,0.00024525,2]
[378195670,1754777482809,-1726.4,0.00024525,2]
[378195671,1754777482818,-460.0,0.00024525,2]
[378195672,1754777482827,-460.0,0.00024525,2]
[378195673,1754777482837,-468.79,0.00024525,2]
[378195674,1754777482846,-1383.57,0.00024525,2]
[378195675,1754777482855,-460.0,0.00024525,2]
[378195676,1754777482864,-460.0,0.00024525,2]
[378195677,1754777482874,-460.0,0.00024525,2]
[378195678,1754777482883,-460.0,0.00024525,2]
[378195679,1754777482893,-482.87,0.00024525,2]
[378195680,1754777482902,-460.0,0.00024525,2]
[378195681,1754777482911,-460.0,0.00024525,2]
[378195682,1754777482920,-283.42761071,0.00024525,2]
[378195683,1754777482930,-503.78,0.00024525,2]
[378195684,1754777482939,-460.0,0.00024525,2]
[378195685,1754777482949,-460.0,0.00024525,2]
[378195686,1754777482958,-460.0,0.00024525,2]
[378195687,1754777482967,-460.0,0.00024525,2]
[378195688,1754777482976,-460.0,0.00024525,2]
[378195689,1754777482985,-460.0,0.00024526,2]
[378195690,1754777482995,-460.0,0.00024526,2]
[378195691,1754777483005,-460.0,0.00024526,2]
[378195692,1754777483014,-460.0,0.00024526,2]
[378195693,1754777483024,-460.0,0.00024526,2]
[378195694,1754777483033,-460.0,0.00024526,2]
[378195695,1754777483043,-186.26,0.00024526,2]
[378195696,1754777483052,-460.0,0.00024526,2]
[378195697,1754777483062,-460.0,0.00024526,2]
[378195698,1754777483071,-460.0,0.00024526,2]
[378195699,1754777483080,-460.0,0.00024526,2]
[378195700,1754777483091,-460.0,0.00024526,2]
[378195701,1754777483100,-460.0,0.00024526,2]
[378195702,1754777483110,-460.0,0.00024526,2]
[378195703,1754777483119,-460.0,0.00024526,2]
[378195704,1754777483129,-177.79741401,0.00024526,2]
[378195705,1754777483138,-460.0,0.00024526,2]
[378195706,1754777483152,-460.0,0.00024526,2]
[378195707,1754777483162,-944.79,0.00024526,2]
[378195708,1754777483171,-496.93620171,0.00024526,2]
[378195709,1754777483181,-460.0,0.00024526,2]
[378195710,1754777483191,-460.0,0.00024526,2]
[378195711,1754777483201,-460.0,0.00024526,2]
[378195712,1754777483211,-524.27,0.00024526,2]
[378195713,1754777483221,-460.0,0.00024526,2]
[378195714,1754777483230,-460.0,0.00024526,2]
[378195715,1754777483240,-460.0,0.00024526,2]
[378195716,1754777483249,-500.0,0.00024526,2]
[378195717,1754777483259,-1321.06,0.00024526,2]
[378195718,1754777483268,-460.0,0.00024526,2]
[378195719,1754777483278,-460.0,0.00024526,2]
[378195720,1754777483288,-678.58,0.00024526,2]
[378195721,1754777483297,-874.9,0.00024526,2]
[378195722,1754777483307,-460.0,0.00024526,2]
[378195723,1754777483317,-460.0,0.00024526,2]
[378195724,1754777483326,-460.0,0.00024526,2]
[378195725,1754777483336,-460.0,0.00024526,2]
[378195726,1754777483348,-460.0,0.00024526,2]
[378195727,1754777483359,-460.0,0.00024526,2]
[378195728,1754777483369,-460.0,0.00024526,2]
[378195729,1754777483379,-460.0,0.00024526,2]
[378195730,1754777483388,-494.9352883,0.00024526,2]
[378195731,1754777483397,-310.56920986,0.00024526,2]
[378195732,1754777483407,-1052.85,0.00024526,2]
[378195733,1754777483418,-494.25,0.00024526,2]
[378195734,1754777483428,-460.0,0.00024526,2]
[378195735,1754777483438,-460.0,0.00024526,2]
[378195736,1754777483447,-460.0,0.00024526,2]
[378195737,1754777483457,-460.0,0.00024526,2]
[378195738,1754777483467,-151.0,0.000246,9]
[378195739,1754777483477,-168.0,0.00024601,2]
[378195740,1754777483486,-595.24,0.00024657,2]
[378195741,1754777483495,-2957.4,0.00024657,4]
[378195742,1754777483506,-151.0,0.00024658,7]
[378195743,1754777483515,-151.0,0.00024658,7]
[378195744,1754777483525,-151.0,0.00024658,7]
[378195745,1754777483534,-151.0,0.00024658,7]
[378195746,1754777483544,-151.0,0.00024658,7]
[378195747,1754777483553,-500.0,0.00024658,2]
[378195748,1754777483563,-460.0,0.00024699,2]
[378195749,1754777483572,-820.96,0.00024699,2]
[378195750,1754777483581,-500.0,0.00024785,2]
[378195751,1754777483593,-460.0,0.00024799,2]
[378195752,1754777483602,-460.0,0.00024799,2]
[378195753,1754777483612,-460.0,0.00024799,2]
[378195754,1754777483621,-460.0,0.00024799,2]
[378195755,1754777483631,-460.0,0.00024799,2]
[378195756,1754777483641,-460.0,0.00024799,2]
[378195757,1754777483650,-460.0,0.00024799,2]
[378195758,1754777483659,-460.0,0.00024799,2]
[378195759,1754777483669,-460.0,0.00024799,2]
[378195760,1754777483678,-596.13,0.00024799,2]
[378195761,1754777483687,-460.0,0.00024799,2]
[378195762,1754777483696,-460.0,0.00024799,2]
[378195763,1754777483705,-460.0,0.00024799,2]
[378195764,1754777483715,-1088.48,0.00024799,2]
[378195765,1754777483724,-460.0,0.00024799,2]
[378195766,1754777483733,-566.37,0.00024799,2]
[378195767,1754777483743,-974.13,0.00024799,2]
[378195768,1754777483752,-460.0,0.00024799,2]
[378195769,1754777483762,-460.0,0.00024799,2]
[378195770,1754777483772,-460.0,0.00024799,2]
[378195771,1754777483781,-460.0,0.00024799,2]
[378195772,1754777483791,-460.0,0.00024799,2]
[378195773,1754777483800,-858.66,0.00024799,2]
[378195774,1754777483810,-470.39167517,0.00024799,2]
[378195775,1754777483819,-2755.0,0.00024799,2]
[378195776,1754777483829,-460.0,0.00024799,2]
[378195777,1754777483841,-460.0,0.00024799,2]
[378195778,1754777483850,-1382.32,0.00024799,2]
[378195779,1754777483860,-4145.95,0.00024799,2]
[378195780,1754777483869,-1604.39,0.00024799,2]
[378195781,1754777483878,-460.0,0.00024799,2]
[378195782,1754777483887,-460.0,0.00024799,2]
[378195783,1754777483897,-460.0,0.00024799,2]
[378195784,1754777483907,-460.0,0.00024799,2]
[378195785,1754777483917,-460.0,0.00024799,2]
[378195786,1754777483927,-460.0,0.00024799,2]
[378195787,1754777484046,-947.95,0.00024799,2]
[378195788,1754777484055,-1247.31,0.00024799,2]
[378195789,1754777484065,-523.55,0.00024799,2]
[378195790,1754777484075,-460.0,0.00024799,2]
[378195791,1754777484084,-1726.4,0.00024799,2]
[378195792,1754777484096,-460.0,0.00024799,2]
[378195793,1754777484106,-460.0,0.00024799,2]
[378195794,1754777484116,-468.79,0.00024799,2]
[378195795,1754777484126,-1383.57,0.00024799,2]
[378195796,1754777484135,-460.0,0.00024799,2]
[378195797,1754777484148,-372.60628979,0.00024799,2]
[378195798,1754777484166,-213.3144082,0.00024799,2]
[378195799,1754777484175,-460.0,0.00024799,2]
[378195800,1754777484185,-482.87,0.00024799,2]
[378195801,1754777484195,-460.0,0.00024799,2]
[378195802,1754777484204,-460.0,0.00024799,2]
[378195803,1754777484214,-503.78,0.00024799,2]
[378195804,1754777484223,-460.0,0.00024799,2]
[378195805,1754777484233,-460.0,0.00024799,2]
[378195806,1754777484242,-460.0,0.00024799,2]
[378195807,1754777484251,-460.0,0.00024799,2]
[378195808,1754777484261,-460.0,0.00024799,2]
[378195809,1754777484271,-460.0,0.000248,2]
[378195810,1754777484281,-460.0,0.000248,2]
[378195811,1754777484290,-460.0,0.000248,2]
[378195812,1754777484300,-492.23154552,0.000248,2]
[378195813,1754777484309,-460.0,0.000248,2]
[378195814,1754777484320,-460.0,0.000248,2]
[378195815,1754777484330,-460.0,0.000248,2]
[378195816,1754777484340,-460.0,0.000248,2]
[378195817,1754777484350,-460.0,0.000248,2]
[378195818,1754777484359,-460.0,0.000248,2]
[378195819,1754777484370,-460.0,0.000248,2]
[378195820,1754777484379,-460.0,0.000248,2]
[378195821,1754777484389,-460.0,0.000248,2]
[378195822,1754777484399,-460.0,0.000248,2]
[378195823,1754777484409,-460.0,0.000248,2]
[378195824,1754777484419,-460.0,0.000248,2]
[378195825,1754777484428,-944.79,0.000248,2]
[378195826,1754777484438,-460.0,0.000248,2]
[378195827,1754777484447,-460.0,0.000248,2]
[378195828,1754777484457,-460.0,0.000248,2]
[378195829,1754777484466,-524.27,0.000248,2]
[378195830,1754777484476,-460.0,0.000248,2]
[378195831,1754777484486,-460.0,0.000248,2]
[378195832,1754777484495,-460.0,0.000248,2]
[378195833,1754777484505,-500.0,0.000248,2]
[378195834,1754777484515,-1321.06,0.000248,2]
[378195835,1754777484525,-460.0,0.000248,2]
[378195836,1754777484535,-398.54796075,0.000248,2]
[378195837,1754777484544,-678.58,0.000248,2]
[378195838,1754777484555,-874.9,0.000248,2]
[378195839,1754777484565,-460.0,0.000248,2]
[378195840,1754777484575,-460.0,0.000248,2]
[378195841,1754777484584,-460.0,0.000248,2]
[378195842,1754777484596,-460.0,0.000248,2]
[378195843,1754777484605,-460.0,0.000248,2]
[378195844,1754777484615,-460.0,0.000248,2]
[378195845,1754777484625,-460.0,0.000248,2]
[378195846,1754777484634,-460.0,0.000248,2]
[378195847,1754777484644,-5629.484067,0.000248,2]
[378195848,1754777484653,-1052.85,0.000248,2]
[378195849,1754777484662,-494.25,0.000248,2]
[378195850,1754777484672,-486.40112897,0.000248,2]
[378195851,1754777484681,-460.0,0.000248,2]
[378195852,1754777484691,-460.0,0.000248,2]
[378195853,1754777484700,-460.0,0.000248,2]
[378195854,1754777484710,-460.0,0.00024803,2]
[378195855,1754777484720,-150.0,0.00024873,2]
[378195856,1754777484730,-595.24,0.00024898,2]
[378195857,1754777484739,-2000.0,0.00024899,2]
[378195858,1754777484749,-2000.0,0.00024899,2]
[378195859,1754777484758,-2000.0,0.00024899,2]
[378195860,1754777484768,-2000.0,0.00024899,2]
[378195861,1754777484777,-2000.0,0.00024899,2]
[378195862,1754777484787,-548.258,0.00024899,2]
[378195863,1754777484796,-2000.0,0.00024899,2]
[378195864,1754777484806,-2000.0,0.00024899,2]
[378195865,1754777484815,-2000.0,0.00024899,2]
[378195866,1754777484825,-2000.0,0.00024899,2]
[378195867,1754777484834,-2000.0,0.00024899,2]
[378195868,1754777484845,-2000.0,0.00024899,2]
[378195869,1754777484854,-2000.0,0.00024899,2]
[378195870,1754777484863,-2000.0,0.00024899,2]
[378195871,1754777484872,-2000.0,0.00024899,2]
[378195872,1754777484882,-2000.0,0.00024899,2]
[378195873,1754777484891,-2000.0,0.00024899,2]
[378195874,1754777484900,-2000.0,0.00024899,2]
[378195875,1754777484910,-2000.0,0.00024899,2]
[378195876,1754777484920,-2000.0,0.00024899,2]
[378195877,1754777484929,-2000.0,0.00024899,2]
[378195878,1754777484940,-2000.0,0.00024899,2]
[378195879,1754777484950,-2000.0,0.00024899,2]
[378195880,1754777484959,-2000.0,0.00024899,2]
[378195881,1754777484968,-207.64,0.00024899,2]
[378195882,1754777484978,-2000.0,0.00024899,2]
[378195883,1754777484987,-2000.0,0.00024899,2]
[378195884,1754777484996,-925.73,0.00024899,2]
[378195885,1754777485005,-595.24,0.00024899,2]
[378195886,1754777485015,-595.24,0.00024899,2]
[378195887,1754777485025,-595.24,0.00024899,2]
[378195888,1754777485034,-595.24,0.00024899,2]
[378195889,1754777485043,-595.24,0.00024899,2]
[378195890,1754777485053,-595.24,0.00024899,2]
[378195891,1754777485063,-595.24,0.00024899,2]
[378195892,1754777485072,-595.34,0.00024899,2]
[378195893,1754777485081,-151.0,0.000249,7]
[378195894,1754777485091,-151.0,0.000249,7]
[378195895,1754777485100,-151.0,0.000249,7]
[378195896,1754777485109,-151.0,0.000249,7]
[378195897,1754777485119,-253.286103,0.000249,7]
[378195898,1754777485128,-253.286103,0.000249,7]
[378195899,1754777485137,-151.0,0.000249,7]
[378195900,1754777485148,-359.399146,0.000249,7]
[378195901,1754777485159,-359.399146,0.000249,7]
[378195902,1754777485168,-601742.6760354,0.000249,2]
[378195903,1754777485367,-87444.4738866,0.000249,2]
[378195904,1754777485376,-168.0,0.0002491,2]
[378195905,1754777485386,-2150.0,0.0002492,2]
[378195906,1754777485396,-636.0,0.0002492,2]
[378195907,1754777485405,-971.0,0.0002492,2]
[378195908,1754777485414,-168.0,0.00024925,2]
[378195909,1754777485424,-500.0,0.00024932,2]
[378195910,1754777485434,-460.0,0.00024973,2]
[378195911,1754777485443,-820.96,0.00024973,2]
[378195912,1754777485452,-186.1,0.00025069,2]
[378195913,1754777485462,-460.0,0.00025073,2]
[378195914,1754777485471,-272.87984282,0.00025073,2]
[378195915,1754777485481,-231.92707669,0.00025073,2]
[378195916,1754777485491,-460.0,0.00025073,2]
[378195917,1754777485501,-460.0,0.00025073,2]
[378195918,1754777485510,-460.0,0.00025073,2]
[378195919,1754777485519,-460.0,0.00025073,2]
[378195920,1754777485529,-460.0,0.00025073,2]
[378195921,1754777485538,-596.13,0.00025073,2]
[378195922,1754777485548,-460.0,0.00025073,2]
[378195923,1754777485557,-460.0,0.00025073,2]
[378195924,1754777485567,-460.0,0.00025073,2]
[378195925,1754777485577,-1088.48,0.00025073,2]
[378195926,1754777485586,-460.0,0.00025073,2]
[378195927,1754777485598,-566.37,0.00025073,2]
[378195928,1754777485608,-974.13,0.00025073,2]
[378195929,1754777485617,-460.0,0.00025073,2]
[378195930,1754777485627,-460.0,0.00025073,2]
[378195931,1754777485637,-460.0,0.00025073,2]
[378195932,1754777485647,-460.0,0.00025073,2]
[378195933,1754777485656,-460.0,0.00025073,2]
[378195934,1754777485671,-858.66,0.00025073,2]
[378195935,1754777485681,-2755.0,0.00025073,2]
[378195936,1754777485690,-460.0,0.00025073,2]
[378195937,1754777485700,-460.0,0.00025073,2]
[378195938,1754777485710,-1382.32,0.00025073,2]
[378195939,1754777485721,-4145.95,0.00025073,2]
[378195940,1754777485731,-1604.39,0.00025073,2]
[378195941,1754777485740,-460.0,0.00025073,2]
[378195942,1754777485750,-460.0,0.00025073,2]
[378195943,1754777485759,-460.0,0.00025073,2]
[378195944,1754777485769,-460.0,0.00025073,2]
[378195945,1754777485779,-460.0,0.00025073,2]
[378195946,1754777485788,-460.0,0.00025073,2]
[378195947,1754777485798,-947.95,0.00025073,2]
[378195948,1754777485808,-1247.31,0.00025073,2]
[378195949,1754777485817,-523.55,0.00025073,2]
[378195950,1754777485826,-460.0,0.00025073,2]
[378195951,1754777485837,-1726.4,0.00025073,2]
[378195952,1754777485848,-460.0,0.00025073,2]
[378195953,1754777485857,-460.0,0.00025073,2]
[378195954,1754777485866,-468.79,0.00025073,2]
[378195955,1754777485876,-1383.57,0.00025073,2]
[378195956,1754777485885,-460.0,0.00025073,2]
[378195957,1754777485895,-482.87,0.00025073,2]
[378195958,1754777485907,-460.0,0.00025073,2]
[378195959,1754777485916,-460.0,0.00025073,2]
[378195960,1754777485927,-503.78,0.00025073,2]
[378195961,1754777485936,-460.0,0.00025073,2]
[378195962,1754777485946,-460.0,0.00025073,2]
[378195963,1754777485955,-460.0,0.00025073,2]
[378195964,1754777486071,-460.0,0.00025073,2]
[378195965,1754777486081,-460.0,0.00025073,2]
[378195966,1754777486092,-460.0,0.00025074,2]
[378195967,1754777486102,-460.0,0.00025074,2]
[378195968,1754777486112,-460.0,0.00025074,2]
[378195969,1754777486121,-460.0,0.00025074,2]
[378195970,1754777486130,-460.0,0.00025074,2]
[378195971,1754777486140,-460.0,0.00025074,2]
[378195972,1754777486154,-460.0,0.00025074,2]
[378195973,1754777486163,-460.0,0.00025074,2]
[378195974,1754777486173,-460.0,0.00025074,2]
[378195975,1754777486183,-460.0,0.00025074,2]
[378195976,1754777486195,-460.0,0.00025074,2]
[378195977,1754777486205,-460.0,0.00025074,2]
[378195978,1754777486214,-460.0,0.00025074,2]
[378195979,1754777486226,-460.0,0.00025074,2]
[378195980,1754777486236,-460.0,0.00025074,2]
[378195981,1754777486245,-944.79,0.00025074,2]
[378195982,1754777486254,-460.0,0.00025074,2]
[378195983,1754777486263,-460.0,0.00025074,2]
[378195984,1754777486272,-460.0,0.00025074,2]
[378195985,1754777486282,-524.27,0.00025074,2]
[378195986,1754777486291,-460.0,0.00025074,2]
[378195987,1754777486300,-460.0,0.00025074,2]
[378195988,1754777486317,-460.0,0.00025074,2]
[378195989,1754777486332,-500.0,0.00025074,2]
[378195990,1754777486341,-1321.06,0.00025074,2]
[378195991,1754777486350,-460.0,0.00025074,2]
[378195992,1754777486359,-678.58,0.00025074,2]
[378195993,1754777486369,-874.9,0.00025074,2]
[378195994,1754777486378,-460.0,0.00025074,2]
[378195995,1754777486387,-460.0,0.00025074,2]
[378195996,1754777486397,-502.51,0.00025074,2]
[378195997,1754777486407,-460.0,0.00025074,2]
[378195998,1754777486416,-460.0,0.00025074,2]
[378195999,1754777486426,-460.0,0.00025074,2]
[378196000,1754777486435,-460.0,0.00025074,2]
[378196001,1754777486445,-1052.85,0.00025074,2]
[378196002,1754777486454,-494.25,0.00025074,2]
[378196003,1754777486463,-460.0,0.00025074,2]
[378196004,1754777486473,-366.22171395,0.00025074,2]
[378196005,1754777486483,-5325.56760186,0.00025164,2]
[378196006,1754777486495,-500.0,0.00025206,2]
[378196007,1754777486509,-371.87,0.00025247,2]
[378196008,1754777486518,-820.96,0.00025247,2]
[378196009,1754777486527,-167.0,0.0002526,16]
[378196010,1754777486537,-587.0,0.00025312,2]
[378196011,1754777486547,-720.0,0.00025314,2]
[378196012,1754777486556,-460.0,0.00025347,2]
[378196013,1754777486565,-460.0,0.00025347,2]
[378196014,1754777486575,-460.0,0.00025347,2]
[378196015,1754777486584,-460.0,0.00025347,2]
[378196016,1754777486595,-596.13,0.00025347,2]
[378196017,1754777486608,-460.0,0.00025347,2]
[378196018,1754777486618,-460.0,0.00025347,2]
[378196019,1754777486627,-460.0,0.00025347,2]
[378196020,1754777486636,-1088.48,0.00025347,2]
[378196021,1754777486646,-460.0,0.00025347,2]
[378196022,1754777486655,-566.37,0.00025347,2]
[378196023,1754777486664,-974.13,0.00025347,2]
[378196024,1754777486673,-460.0,0.00025347,2]
[378196025,1754777486683,-460.0,0.00025347,2]
[378196026,1754777486692,-460.0,0.00025347,2]
[378196027,1754777486701,-460.0,0.00025347,2]
[378196028,1754777486711,-357.1399445,0.00025347,2]
[378196029,1754777486720,-858.66,0.00025347,2]
[378196030,1754777486729,-2755.0,0.00025347,2]
[378196031,1754777486739,-460.0,0.00025347,2]